{"text_format":"1","workbook":"xlsx","n_sheets":6,"sheets":["Vejledning til Risikovurdering","Risikovurdering","Opgaveliste","Konsekvensanalyse","Trusselskatalog","Arbejdsark med formler "],"not_rendered":{"charts":0,"images":1,"macros":1,"external_links":0,"defined_names":2,"comments":1,"pivot_tables":0},"unopened":[],"bounds":{"document_bytes":16777216,"sheet_cells":100000,"rows_first":2000,"rows_last":500,"rows_between":2000,"halvings":0,"cell_chars":16384,"cell_head_chars":4096},"cells_cut":0,"cells_raw":0,"read":"whole","date_system":"1900"}

{"sheet":"Vejledning til Risikovurdering","index":0,"n_rows":66,"n_cols":7,"rows_kept":66,"cut":false,"hidden":false,"merged":[[24,0,24,3],[25,0,25,3],[6,0,6,5],[7,0,7,5],[9,0,9,3],[18,0,18,3],[19,0,19,3],[20,0,20,3],[11,2,11,3],[17,0,17,3],[21,0,21,3],[22,0,22,3],[23,0,23,3],[10,2,10,3],[12,2,12,3],[13,2,13,3],[46,0,46,1],[30,0,30,3],[31,0,31,3],[32,0,32,3],[26,0,26,3],[27,0,27,3],[28,0,28,3],[29,0,29,3],[47,0,47,1],[48,0,48,1],[49,0,49,1],[50,0,50,1],[51,0,51,1],[14,2,14,3],[0,0,0,5],[3,0,3,5],[4,0,4,5],[5,0,5,5],[1,0,1,5],[60,0,60,5],[37,0,37,5],[16,0,16,3],[38,2,38,5],[39,2,39,5],[40,2,40,5],[41,2,41,5],[42,2,42,5],[44,0,44,5],[58,0,58,5],[54,2,54,6],[55,2,55,6],[35,0,35,5],[34,0,34,5],[53,2,53,6],[52,2,52,6],[61,3,61,6],[62,3,62,6],[63,3,63,6],[64,3,64,6],[65,3,65,6],[61,0,61,2],[62,0,62,2],[63,0,63,2],[64,0,64,2],[65,0,65,2]]}
["Læsevejledning til udfyldelse af risikovurderingen "]
["Dokumentet består af flere faner; de blå faner giver information og vejledning, mens de grønne faner er dem, du skal udfylde. \n\nDen vigtigste fane er 'Risikovurdering', hvor du udfylder selve risikovurderingen. Du skal udfylde de felter, som er markeret med rød tekst.\n\nDet første, du skal udfylde i risikovurderingen, er stamdata for systemet.\n\nDernæst skal du forholde dig til de tolv beskrevne trusler. Der er tilføjet tomme felter, så du har mulighed for selv at tilføje flere trusler. I arket 'Trusselskatalog' kan du få inspiration til flere trusler og få viden om, hvilke scenarier der ligger bag de tolv beskrevne trusler.  \n\nI risikovurderingen skal du forholde dig til én trussel ad gangen, hvor du hertil vurderer sandsynlighed for, at en given trussel rammer systemet. Efter du har vurderet sandsynlighed, skal du begrunde dit valg og forklare, hvordan du har fundet frem til vurderingen. \n\nDit næste skridt er at vurdere konsekvens for Jammerbugt Kommune som arbejdsplads, hvis der sker et brud på fortrolighed, integritet eller tilgængelighed. Her skal du også begrunde dit valg af konsekvens og forklare med dine egne ord, hvad truslen vil medføre af konsekvens for kommunen. Det samme skal du gøre, når du skal vurdere konsekvens for den registrerede (det kan fx borger eller medarbejder). \n\nDu skal nu vurdere, hvorvidt en konsekvensanalyse skal udarbejdes. Det gøres i arket 'Konsekvensanalyse', hvor du finder to bokse, som begge skal udfyldes. Længst til højre i boksen ved 'Vælg' skal du besvare det pågældende spørgsmål ved at vælge enten 'Ja' eller 'Nej'. Den første boks indeholder to spørgsmål, og hvis bare én af spørgsmålene besvares med et 'Ja', skal der udarbejdes en konsekvensanalyse. I boks nr. 2 finder du seks spørgsmål, hvor hvis én eller flere af disse spørgsmål bliver et 'Ja', skal du tage kontakt til kommunens sikkerhedsrådgiver på sikkerhed@jammerbugt.dk, så I kan lave en fælles vurdering af, om en konsekvensanalyse skal udarbejdes. Hvis beslutningen bliver, at en konsekvensanalyse ikke skal udarbejdes, skal du i den tredje og sidste boks i arket 'Konsekvensanalyse' skrive med egne ord, hvad der ligger til grund for fravalg af en konsekvensanalyse. \n\nEfterhånden, som skemaet udfyldes, vil risikoen for hhv. kommunen og for den registrerede (risikovægtning) skifte farve. Øverst i risikovurderingen ses en farvebeskrivelse af, hvor alvorlig risikoen er. Hvis risikoen ender med at blive 'gul' eller 'rød' vil truslen automatisk blive ført over i fanen 'Opgaveliste'. I ’Opgaveliste’ skal du notere, hvad du vil gøre for at nedbringe risikoen, herunder hvem der er ansvarlig for opgaven og hvornår opgaven vil være udført. Når opgaver tilknyttet en risiko er afsluttet, genvurderes risikoniveauet.\n\nVær opmærksom på, at du ikke må slette rækker i Excel-arket.\n\nArket 'Arbejdsark med formler' er udelukkende et arbejdsark - det har ingen betydning for udfyldelsen af risikovurderingen."]
[]
["Begrebsforklaring og metodebeskrivelse til risikovurdering "]
["En risikovurdering består af en konsekvensvurdering og en sårbarhedsvurdering \n\nKonsekvensvurderingen beskriver konsekvensen for den registrerede, hvis der sker et brud på fortrolighed, integritet eller tilgængelighed. Sårbarhedsvurderingen vurderer sandsynligheden for, at en trussel rammer systemet og udnytter en sårbarhed. "]
[]
["Konsekvensvurdering "]
["It-løsningen er konsekvensvurderet i forhold til fortrolighed, tilgængelighed og integritet. Konsekvensen er for den registreredes rettigheder hvis: \n•              Data ikke er tilgængelig i flere dage (tilgængelighed)\n•              Uvedkommende får fat i oplysningerne (fortrolighed)\n•              Data er forkerte (integritet)\n\nI nedenstående skema finder du en beskrivelse af konsekvensvurderingen 1, 2, 3 og 4 og betydningen heraf. Der er også en beskrivelse af, hvad der menes med fortrolighed, tilgængelighed og integritet.\n\nKonsekvensvurderingen er bygget således op, at det højeste tal 'vinder'. Dette vil sige, at hvis konsekvensen er vurderet til at være 4 i spørgsmålet om fortrolighed, men 'kun' er 2 eller 3 i de øvrige spørgsmål, er det den samlede konsekvensvurdering, der 'vinder' altså 4. "]
[]
["Beskrivelse af konsekvens "]
[null,"Konsekvens ","Beskrivelse "]
[1,"lav","Personer kan opleve få mindre ulemper, som de kan overkomme uden større indsats (tid brugt på at genindtaste oplysninger, dårlig brugeroplevelser, irritation og lignende)."]
[2,"Medium","Personer kan opleve betydelige ulemper, som de kan overkomme med få besværligheder (ekstra udgifter, manglende adgang til forretningsservice, frygt, mangel på forståelse, stress, mindre fysiske lidelser). "]
[3,"Høj","Personer kan opleve betydelige konsekvenser, som de kun kan overkomme med alvorlige vanskeligheder (økonomiske konsekvenser, fejlkontering af midler, sortlistning eller nedgradering i kreditmuligheder, fysiske skader på aktiver, påvirkning af arbejdssituation, stævning, dårligere helbred og lignende)."]
[4,"Meget høj","Personer kan opleve betydelige eller endog uoprettelige konsekvenser, som de måske ikke overvinder (mistet erhvervsevne, langvarige fysiske og psykiske lidelser, død og lignende)."]
[]
["Nærmere om fortrolighed, integritet og tilgængelighed"]
["Konsekvenser"]
["Brud på fortrolighed"]
["Videregivelse af større mængde oplysninger end nødvendigt "]
["Videregivelse af oplysninger, der ikke er omfattet af de berørtes udtrykkelige samtykke "]
["Utilsigtet videregivelse af oplysninger, der er linket til andre oplysninger om de berørte"]
["Oplysningerne kan blive misbrugt til andre eller ulovlige formål "]
["Andre konsekvenser som følge af brud på fortrolighed "]
["Brud på integritet"]
["Oplysninger kan være blevet ændret eller brugt, selv om at oplysningerne ikke længere er valide"]
["Oplysninger kan være blevet omdannet til andre valide data og brug til andre formål"]
["Andre konsekvenser som følge af brud på integritet "]
["Brud på tilgængeligheden "]
["Manglende evne til at yde afgørende hjælp til dem, som er berørt af hændelsen"]
["Ændringer i muligheden for at yde afgørende hjælp til de berørte "]
["Manglende kontinuitet "]
["Andre konsekvenser som følge af brud på tilgængeligheden"]
[]
["Sårbarhedsvurdering (sandsynlighed) "]
["Sårbarhedsvurderingen giver en oversigt over it-løsningens svaghed, der kan udnyttes af en eller flere trusler. Sårbarhed er ikke i sig selv farlig, da der er nødt til at være en trussel, som kan udnytte den. \nI arket 'Trusselskatalog' finder du en oversigt over eksempler på trusler, der kan udnytte en sårbarhed. "]
[]
["Eksempler på trusler, der kan udnytte en sårbarhed "]
["Nr. ","Sandsynlighed ","Beskrivelse "]
[1,"Usandsynligt ","Det anses for næsten udelukket, at truslen nogensinde kan forekomme\n\n- Ingen erfaring med truslen\n- Kendes kun fra få offentlige og private virksomheder"]
[2,"Mindre sandsynligt ","Truslen forventes ikke at ske \n\n- Mindre erfaring med truslen\n- Kendes fra offentlige og private virksomheder"]
[3,"Sandsynligt","Det er sandsynligt, at truslen vil forekomme \n\n- Man har erfaring med truslen, men ikke inden for de sidste 12 måneder \n- Kendes fra offentlige og private virksomheder (omtales årligt i pressen)"]
[4,"Forventet","Det forventes, at truslen vil forekomme \n\n- Man har erfaring med truslen inden for de sidste 12 måneder\n- Hænder jævnligt i andre offentlige og private virksomheder (omtales ofte i pressen)"]
[]
["Du skal vurdere sandsynligheden for, at en trussel udnytter en sårbarhed, ud fra hvor sandsynligt der er, at truslen sker.\n \nDu bør derfor som det første tillægge egne historiske data stor værdi - hvilke trusler har resulteret i sikkerhedshændelser? Har it-løsningen været udsat for hacking, phishing, tyveri af personoplysninger, fejludsendelse af personoplysninger til forkerte modtager eller har medarbejderne uploadet personoplysninger til private cloudtjenester? \n\nNår sandsynligheden er vurderet, vil risikoen automatisk blive beregnet. Risikoen beregnes ved at gange værdien i kolonnen ’Konsekvens’ med værdien i kolonnen ’Sandsynlighed’.\n\nNedenstående skema viser risikomatrice med værdierne, som den beregnede risiko kan have, og giver en vejledning til, hvordan risikoen kan håndteres."]
[]
["Konsekvens"]
["Meget høj",null,"Under middel\n4","Middel \n8","Over middel\n12","Høj\n16"]
["Høj",null,"Lav\n3","Under middel\n6","Middel \n9","Over middel\n12"]
["Medium",null,"Lav\n2","Under middel\n4","Under middel\n6","Middel \n8"]
["Lav",null,"Lav\n1","Lav\n2","Lav\n3","Under middel\n4"]
[null,null,"Usandsynligt","Mindre sandsynligt","Sandsynligt","Forventet","Sandsynlighed"]
[null,null,"Lav - under middel: Bør ikke give anledning til yderligere behandling"]
[null,null,"Middel: Bør give anledning til løbende overvågning"]
[null,null,"Over middel: Bør give anledning til håndtering"]
[null,null,"Høj: Bør håndteres med det samme"]
[]
[]
["Vær opmærksom på, at hvis konsekvensen vurderes til at være meget høj, og det er usandsynligt, at truslen vil indtræffe, kan det stadig have alvorlige konsekvenser for den registrerede, hvis den indtræder. Selvom den beregnede risiko i disse situationer er forholdsvis lav (under middel og er 'grøn'), bør du alligevel overveje, hvordan du kan nedbringe risikoen for den registrerede. "]
[]
["Klassifikation af personoplysninger"]
["Typer af personoplysninger",null,null,"Forklaring"]
["Almindelige personoplysninger",null,null,"Almindelige personoplysninger dækker ret bredt og kan fx være navn, fødselsdato,  kontaktoplysninger, økonomiske forhold, lokationsdata (GPS), betalingsoplysninger, IP-adresse, uddannelse, CV, ansøgning og beskæftigelse. "]
["Følsomme personoplysninger",null,null,"Følsomme oplysninger inkluderer kun nedenstående liste:\n• Race og etnisk oprindelse (fx indvandrer fra Iran)\n• Politisk overbevisning (fx medlem af Ventres partiforening)\n• Religiøs eller filosofisk overbevisning (fx medlem af Folkekirken eller en elevs projektopgave)\n• Fagforeningsmæssige tilhørsforhold (fx medlem af 3F)\n• Genetiske data (fx blodprøve)\n• Biometriske data med henblik på entydig identifikation (fx fingeraftryk eller ansigtsgenkendelse)\n• Helbredsoplysninger (fx kræftpatient)\n• Seksuelle forhold eller seksuel orientering (fx homoseksuel)"]
["Oplysninger om straffedomme og lovovertrædelser eller tilknyttede sikkerehdsforanstaltninger",null,null,"Disse typer oplysninger skal kommunen passe lige så godt på som de følsomme og de fortrolige oplysninger. Strafbare forhold skal forstås bredere end blot, at en person er dømt for overtrædelse af lovgivningen. I nogle tilfælde dækker denne kategori også anmeldelser til politiet, hvis anmeldelse er underbygget med en dokumentation af en persons lovovertrædelse (fx bevis for at vedkommende har snydt med skat eller overvågningsbilleder, der viser hærværk)."]
["Fortrolige personoplysninger",null,null,"Mange forskellige oplysninger kan være fortrolige, og det er din opgave at vurdere, hvornår der er tale om fortrolige oplysninger. En tommelfingerregel er, at det typisk er oplysninger, som man ikke ville dele om sig selv til alle og enhver. Det er vigtigt at være opmærksom på, at nogle menneskers grænse for hvornår det er krænkende at få delt en given oplysning er forskellig fra person til person. For nogle er det fx grænseoverskridende, at andre uvedkommende ved, hvor mange sygedage man har haft på sit arbejde i år. Vær opmærksom på, at en fortrolig oplysning som regel også er en almindelig oplysning, og i risikovurderingen noteres de i så fald som værende begge dele.\nOplysninger som CPR.nr., børns og sårbare borgeres almindelige personoplysninger, indtægts- og formueforhold, arbejds- og ansættelsesmæssige forhold, væsentlige sociale problemer, familieforhold of andre rent private forhold. "]

{"sheet":"Risikovurdering","index":1,"n_rows":25,"n_cols":24,"rows_kept":25,"cut":false,"hidden":false,"merged":[[4,21,5,21],[4,4,5,4],[4,9,4,13],[4,16,4,20],[4,14,5,14],[23,1,24,2],[5,1,5,2],[4,7,5,7],[4,5,4,6],[4,1,4,2]]}
[]
[null,"Risikovurdering af system, proces mv. i Jammerbugt Kommune"]
[]
[]
[null,"<Systemnavn eller procesnavn>",null,null,"Trusler","Vurdering af sandsynlighed",null,"Begrundelse for vurderingen af sandsynlighed",null,"Konsekvens for Jammerbugt Kommune \n\nTip: Kan kommunen levere sine ydelser på tilfredsstillende vis?",null,null,null,null,"Begrundelse for vurderingen af konsekvens",null,"Konsekvens for \nden registrerede fx borger eller medarbejder",null,null,null,null,"Begrundelse for vurderingen af konsekvens"]
[null,"Generelle oplysninger om databehandlingen",null,null,null,"Sandsynlighed ","Risikoscore",null,null,"Konsekvens","Risikoscore","Konsekvenstype\n","Risikoscore","Risikovægtning ",null,null,"Konsekvens","Risikoscore","Konsekvenstype","Risikoscore","Risikovægtning"]
[null,"Kategori\n(Vælg fra dropdown-menu)","Vælg kategori",null,"Manglende adgangsstyring og kontrol af brugere","Vælg sandsynlighed",{"$f":"_xlfn.IFS(F7=\"Vælg sandsynlighed\",\"0\",F7=\"Ikke relevant\",\"0\",F7=\"Usandsynligt\",\"1\",F7=\"Mindre sandsynligt\",\"2\",F7=\"Sandsynligt\",\"3\",F7=\"Forventet\",\"4\")","v":"0"},"<Begrundelse>",null,"Vælg konsekvens",{"$f":"_xlfn.IFS(J7=\"Vælg konsekvens\",\"0\",J7=\"Ikke relevant\",\"0\",J7=\"Lav\",\"1\",J7=\"Medium\",\"2\",J7=\"Høj\",\"3\",J7=\"Meget høj\",\"4\")","v":"0"},"Brud på fortrolighed Brud på integritet ",{"$f":"G7*K7","v":0},null,"<Begrundelse>",null,"Vælg konsekvens",{"$f":"_xlfn.IFS(Q7=\"Vælg konsekvens\",\"0\",Q7=\"Ikke relevant\",\"0\",Q7=\"Lav\",\"1\",Q7=\"Medium\",\"2\",Q7=\"Høj\",\"3\",Q7=\"Meget høj\",\"4\")","v":"0"},"Brud på fortrolighed Brud på integritet ",{"$f":"G7*R7","v":0},null,"<Begrundelse>",{"$f":"IF(T7>=7,1,0)","v":0},{"$f":"IF(W7=1,1,0)","v":0}]
[null,"Leverandør","<Leverandørnavn>",null,"Manglende beskyttelse af data ved forsendelse som fx lav eller ingen kryptering","Vælg sandsynlighed",{"$f":"_xlfn.IFS(F8=\"Vælg sandsynlighed\",\"0\",F8=\"Ikke relevant\",\"0\",F8=\"Usandsynligt\",\"1\",F8=\"Mindre sandsynligt\",\"2\",F8=\"Sandsynligt\",\"3\",F8=\"Forventet\",\"4\")","v":"0"},"<Begrundelse>",null,"Vælg konsekvens",{"$f":"_xlfn.IFS(J8=\"Vælg konsekvens\",\"0\",J8=\"Ikke relevant\",\"0\",J8=\"Lav\",\"1\",J8=\"Medium\",\"2\",J8=\"Høj\",\"3\",J8=\"Meget høj\",\"4\")","v":"0"},"Brud på fortrolighed ",{"$f":"G8*K8","v":0},null,"<Begrundelse>",null,"Vælg konsekvens",{"$f":"_xlfn.IFS(Q8=\"Vælg konsekvens\",\"0\",Q8=\"Ikke relevant\",\"0\",Q8=\"Lav\",\"1\",Q8=\"Medium\",\"2\",Q8=\"Høj\",\"3\",Q8=\"Meget høj\",\"4\")","v":"0"},"Brud på fortrolighed ",0,null,"<Begrundelse>",{"$f":"IF(T8>=7,1,0)","v":0},{"$f":"IF(W8=1,W7+1,0)","v":0}]
[null,"Forvaltning\n(Vælg fra dropdown-menu)","Vælg forvaltning",null,"Problemer i forbindelse med udlicitering som fx, at leverandør går konkurs, eller at samarbejdet brat ophører","Vælg sandsynlighed",{"$f":"_xlfn.IFS(F9=\"Vælg sandsynlighed\",\"0\",F9=\"Ikke relevant\",\"0\",F9=\"Usandsynligt\",\"1\",F9=\"Mindre sandsynligt\",\"2\",F9=\"Sandsynligt\",\"3\",F9=\"Forventet\",\"4\")","v":"0"},"<Begrundelse>",null,"Vælg konsekvens",{"$f":"_xlfn.IFS(J9=\"Vælg konsekvens\",\"0\",J9=\"Ikke relevant\",\"0\",J9=\"Lav\",\"1\",J9=\"Medium\",\"2\",J9=\"Høj\",\"3\",J9=\"Meget høj\",\"4\")","v":"0"},"Brud på tilgængelighed ",0,null,"<Begrundelse>",null,"Vælg konsekvens","0","Brud på tilgængelighed ",0,null,"<Begrundelse>",0,{"$f":"IF(W9=1,W7+W8+1,0)","v":0}]
[null,"Afdelingsnavn"," <Fx Skole og Dagtilbud>",null,"Ubevidste brugerfejl som fx tab af it-udstyr, forlæggelse af print eller videregivelse af personoplysninger ved en fejl (bruger handler uagtsomt)","Vælg sandsynlighed","0","<Begrundelse>",null,"Vælg konsekvens","0","Brud på integritet Brud på fortrolighed ",0,null,"<Begrundelse>",null,"Vælg konsekvens","0","Brud på integritet Brud på fortrolighed ",0,null,"<Begrundelse>",0,{"$f":"IF(W10=1,W7+W8+W9+1,0)","v":0}]
[null,"Anvendelse","<En beskrivelse af, hvad systemet/platformen bruges til>",null,"Beviste brugerfejl som fx misbrug af personoplysninger, korruption eller bedrageri (bruger handler forsætligt)\n\nTip: Vurder brugernes motiv, kompetence og mulighed = samlet sandsynlighed","Vælg sandsynlighed","0","<Begrundelse>",null,"Vælg konsekvens","0","Brud på integritet Brud på fortrolighed ",0,null,"<Begrundelse>",null,"Vælg konsekvens","0","Brud på integritet Brud på fortrolighed ",{"$f":"G11*R11","v":0},null,"<Begrundelse>",0,{"$f":"IF(W11=1,W7+W8+W9+W10+1,0)","v":0}]
[null,"Systemejer","<Navn>",null,"It-angreb som hacking, phishing mv. \n\nTip: Kig i databehandleraftalen for beskrivelse af tekniske sikkerhedsforanstaltninger","Vælg sandsynlighed","0","<Begrundelse>",null,"Vælg konsekvens","0","Brud på tilgængelighed Brud på integritet Brud på fortrolighed ",0,null,"<Begrundelse>",null,"Vælg konsekvens","0","Brud på tilgængelighed Brud på integritet Brud på fortrolighed ",0,null,"<Begrundelse>",0,{"$f":"IF(W12=1,W7+W8+W9+W10+W11+1,0)","v":0}]
[null,"Systemforvalter","<Navn>",null,"It-nedbrud \n\nTip: Er systemet ofte utilgængeligt?","Vælg sandsynlighed","0","<Begrundelse> ",null,"Vælg konsekvens","0","Brud på tilgængelighed ",0,null,"<Begrundelse>",null,"Vælg konsekvens","0","Brud på tilgængelighed ",0,null,"<Begrundelse>",0,{"$f":"IF(W13=1,W7+W8+W9+W10+W11+W12+1,0)","v":0}]
[null,"Evt. superbruger / driftsansvarlig","<Navn>",null,"Manglende sletning af personoplysninger\n\nTip: Kig i databehandleraftalen, om der er aftalt sletteprocedure. ","Vælg sandsynlighed","0","<Begrundelse>",null,"Vælg konsekvens","0","Brud på fortrolighed ",0,null,"<Begrundelse>",null,"Vælg konsekvens","0","Brud på fortrolighed ",0,null,"<Begrundelse>",0,{"$f":"IF(W14=1,W7+W8+W9+W10+W11+W12+W13+1,0)","v":0}]
[null,"Klassifikation af oplysninger \n(Vælg fra dropdown-menu)\nTip: Se forklaring af kategorierne i vejledningen","Vælg kategorier",null,"Mangelfuld logning og/eller ingen kontrol af log","Vælg sandsynlighed","0","<Begrundelse>",null,"Vælg konsekvens","0","Brud på fortrolighed Brud på integritet ",0,null,"<Begrundelse>",null,"Vælg konsekvens","0","Brud på fortrolighed Brud på integritet ",0,null,"<Begrundelse>",0,{"$f":"IF(W15=1,W7+W8+W9+W10+W11+W12+W13+W14+1,0)","v":0}]
[null,"Kræves der en databehandleraftale?",{"$f":"IF(OR(ISNUMBER(FIND(\"Almindelige\",C15)),(ISNUMBER(FIND(\"Fortrolige\",C15))),(ISNUMBER(FIND(\"Følsomme\",C15)))),\"Ja\",\"Nej\")","v":"Nej"},null,"Tab af nøglemedarbejdere, fx i tilfælde af ansættelsesophør uden overlevering ","Vælg sandsynlighed",{"$f":"_xlfn.IFS(F16=\"Vælg sandsynlighed\",\"0\",F16=\"Ikke relevant\",\"0\",F16=\"Usandsynligt\",\"1\",F16=\"Mindre sandsynligt\",\"2\",F16=\"Sandsynligt\",\"3\",F16=\"Forventet\",\"4\")","v":"0"},"<Begrundelse>",null,"Vælg konsekvens",{"$f":"_xlfn.IFS(J16=\"Vælg konsekvens\",\"0\",J16=\"Ikke relevant\",\"0\",J16=\"Lav\",\"1\",J16=\"Medium\",\"2\",J16=\"Høj\",\"3\",J16=\"Meget høj\",\"4\")","v":"0"},"Brud på tilgængelighed ",{"$f":"G16*K16","v":0},null,"<Begrundelse>",null,"Vælg konsekvens",{"$f":"_xlfn.IFS(Q16=\"Vælg konsekvens\",\"0\",Q16=\"Ikke relevant\",\"0\",Q16=\"Lav\",\"1\",Q16=\"Medium\",\"2\",Q16=\"Høj\",\"3\",Q16=\"Meget høj\",\"4\")","v":"0"},"Brud på tilgængelighed ",{"$f":"G16*R16","v":0},null,"<Begrundelse>",0,{"$f":"IF(W16=1,W7+W8+W9+W10+W11+W12+W13+W14+W15+1,0)","v":0}]
[null,"Er der indgået en databehandleraftalen?","Vælg databehandleraftale",null,"Fysiske trusler såsom brand, bombetrussel, oversvømmelse, strømsvigt mv.","Vælg sandsynlighed",{"$f":"_xlfn.IFS(F17=\"Vælg sandsynlighed\",\"0\",F17=\"Ikke relevant\",\"0\",F17=\"Usandsynligt\",\"1\",F17=\"Mindre sandsynligt\",\"2\",F17=\"Sandsynligt\",\"3\",F17=\"Forventet\",\"4\")","v":"0"},"<Begrundelse>",null,"Vælg konsekvens",{"$f":"_xlfn.IFS(J17=\"Vælg konsekvens\",\"0\",J17=\"Ikke relevant\",\"0\",J17=\"Lav\",\"1\",J17=\"Medium\",\"2\",J17=\"Høj\",\"3\",J17=\"Meget høj\",\"4\")","v":"0"},"Brud på tilgængelighed ",{"$f":"G17*K17","v":0},null,"<Begrundelse>",null,"Vælg konsekvens",{"$f":"_xlfn.IFS(Q17=\"Vælg konsekvens\",\"0\",Q17=\"Ikke relevant\",\"0\",Q17=\"Lav\",\"1\",Q17=\"Medium\",\"2\",Q17=\"Høj\",\"3\",Q17=\"Meget høj\",\"4\")","v":"0"},"Brud på tilgængelighed ",{"$f":"G17*R17","v":0},null,"<Begrundelse>",{"$f":"IF(T17>=7,1,0)","v":0},{"$f":"IF(W17=1,W7+W8+W9+W10+W11+W12+W13+W14+W15+W16+1,0)","v":0}]
[null,"Valg af tilsynsform\n(Vælg fra dropdown-menu)\n\nTip: Ved \"Andet\", noter hvordan under \"Øvrige bemærkninger\"","Vælg tilsynsform",null,"Systemfejl, som fx medfører læk eller offentliggørelse af fortrolige oplysninger","Vælg sandsynlighed","0","<Begrundelse>",null,"Vælg konsekvens","0","Brud på tilgængelighed ",0,null,"<Begrundelse>",null,"Vælg konsekvens","0","Brud på tilgængelighed ",0,null,"<Begrundelse>",0,{"$f":"IF(W18=1,W7+W8+W9+W10+W11+W12+W13+W14+W15+W16+W17+1,0)","v":0}]
[null,"Hyppighed for tilsyn med databehandler \n(Vælg fra dropdown-menu)","Vælg hyppighed for tilsyn",null,"Systemdrift fx  manglende viden om, hvordan man drifter systemet, og manglende mulighed for udvikling af systemet ","Vælg sandsynlighed","0","<Begrundelse>",null,"Vælg konsekvens","0","Brud på fortrolighed Brud på tilgængelighed ",0,null,"<Begrundelse>",null,"Vælg konsekvens","0","Brud på fortrolighed Brud på tilgængelighed ",{"$f":"G19*R19","v":0},null,"<Begrundelse>",{"$f":"IF(T19>=7,1,0)","v":0},{"$f":"IF(W19=1,W7+W8+W9+W10+W11+W12+W13+W14+W15+W16+W17+W18+1,0)","v":0}]
[null,"Hvilke kategorier af registrerede behandles der primært oplysninger om?\n(Vælg fra dropdown-menu)","Vælg kategorier",null,"Tredjelandsoverførsler fx manglende overførselsgrundlag, sikkerhedsforanstaltninger og gennemsigtighed.\n\nTip: Kig i databehandleraftalen for beskrivelse af evt. videregivelse til tredjelande, overførselsgrundlag og sikkerhed i forbindelse hermed.","Vælg sandsynlighed","0","<Begrundelse>",null,"Vælg konsekvens","0","Brud på tilgængelighed Brud på integritet Brud på fortrolighed ",{"$f":"G20*K20","v":0},null,"<Begrundelse>",null,"Vælg konsekvens",{"$f":"_xlfn.IFS(Q20=\"Vælg konsekvens\",\"0\",Q20=\"Ikke relevant\",\"0\",Q20=\"Lav\",\"1\",Q20=\"Medium\",\"2\",Q20=\"Høj\",\"3\",Q20=\"Meget høj\",\"4\")","v":"0"},"Brud på tilgængelighed Brud på integritet Brud på fortrolighed ",0,null,"<Begrundelse>",{"$f":"IF(T20>=7,1,0)","v":0},{"$f":"IF(W20=1,W7+W8+W9+W10+W11+W12+W13+W14+W15+W16+W17+W18+W19+1,0)","v":0}]
[null,"Risikovurderingen er sidst revideret:","<dd-mm-åååå>",null,"Placering af dataansvar og misbrug af data\n\nTip: Er der uvished om placeringen af dataansvaret? Erfaring med, at data bruges til utilsigtede formål? Føres der kontrol med databehandleren?","Vælg sandsynlighed",{"$f":"_xlfn.IFS(F21=\"Vælg sandsynlighed\",\"0\",F21=\"Ikke relevant\",\"0\",F21=\"Usandsynligt\",\"1\",F21=\"Mindre sandsynligt\",\"2\",F21=\"Sandsynligt\",\"3\",F21=\"Forventet\",\"4\")","v":"0"},"<Begrundelse>",null,"Vælg konsekvens",{"$f":"_xlfn.IFS(J21=\"Vælg konsekvens\",\"0\",J21=\"Ikke relevant\",\"0\",J21=\"Lav\",\"1\",J21=\"Medium\",\"2\",J21=\"Høj\",\"3\",J21=\"Meget høj\",\"4\")","v":"0"},"Brud på tilgængelighed Brud på integritet Brud på fortrolighed ",{"$f":"G21*K21","v":0},null,"<Begrundelse>",null,"Vælg konsekvens",{"$f":"_xlfn.IFS(Q21=\"Vælg konsekvens\",\"0\",Q21=\"Ikke relevant\",\"0\",Q21=\"Lav\",\"1\",Q21=\"Medium\",\"2\",Q21=\"Høj\",\"3\",Q21=\"Meget høj\",\"4\")","v":"0"},"Brud på tilgængelighed Brud på integritet Brud på fortrolighed ",0,null,"<Begrundelse>",{"$f":"IF(T21>=7,1,0)","v":0},{"$f":"IF(W21=1,W7+W8+W9+W10+W11+W12+W13+W14+W15+W16+W17+W18+W19+W20+1,0)","v":0}]
[null,"Risikovurderingen er udarbejdet af:","<Navn>",null,"Manglende overholdelse af de registreredes rettigheder\nTip: Opfyldes oplysningspligten? Har de registrerede fx mulighed for at gøre indsigelser mod behandlingen / opnå indsigt i behandlingen?","Vælg sandsynlighed","0","<Begrundelse>",null,"Vælg konsekvens","0","Brud på tilgængelighed Brud på integritet Brud på fortrolighed ",0,null,"<Begrundelse>",null,"Vælg konsekvens","0","Brud på tilgængelighed Brud på integritet Brud på fortrolighed ",{"$f":"G22*R22","v":0},null,"<Begrundelse>",{"$f":"IF(T22>=7,1,0)","v":0},{"$f":"IF(W22=1,W7+W8+W9+W10+W11+W12+W13+W14+W15+W16+W17+W18+W19+W20+W21+1,0)","v":0}]
[null,"Skal der udarbejdes en konsekvensanalyse?","Vælg ",null,"< Tilføj trussel >  ","Vælg sandsynlighed",{"$f":"_xlfn.IFS(F23=\"Vælg sandsynlighed\",\"0\",F23=\"Ikke relevant\",\"0\",F23=\"Usandsynligt\",\"1\",F23=\"Mindre sandsynligt\",\"2\",F23=\"Sandsynligt\",\"3\",F23=\"Forventet\",\"4\")","v":"0"},"<Begrundelse>",null,"Vælg konsekvens",{"$f":"_xlfn.IFS(J23=\"Vælg konsekvens\",\"0\",J23=\"Ikke relevant\",\"0\",J23=\"Lav\",\"1\",J23=\"Medium\",\"2\",J23=\"Høj\",\"3\",J23=\"Meget høj\",\"4\")","v":"0"},null,{"$f":"G23*K23","v":0},null,"<Begrundelse>",null,"Vælg konsekvens",{"$f":"_xlfn.IFS(Q23=\"Vælg konsekvens\",\"0\",Q23=\"Ikke relevant\",\"0\",Q23=\"Lav\",\"1\",Q23=\"Medium\",\"2\",Q23=\"Høj\",\"3\",Q23=\"Meget høj\",\"4\")","v":"0"},null,0,null,"<Begrundelse>",{"$f":"IF(T23>=7,1,0)","v":0},{"$f":"IF(W23=1,W10+W11+W12+W13+W14+W15+W16+W17+W18+W19+W20+W21+W22+1,0)","v":0}]
[null,"Øvrige bemærkninger: \n<Her kan du notere, hvis du har brug for at knytte nogle overordnede bemærkninger til risikovurderingen>",null,null,"< Tilføj trussel > ","Vælg sandsynlighed",{"$f":"_xlfn.IFS(F24=\"Vælg sandsynlighed\",\"0\",F24=\"Ikke relevant\",\"0\",F24=\"Usandsynligt\",\"1\",F24=\"Mindre sandsynligt\",\"2\",F24=\"Sandsynligt\",\"3\",F24=\"Forventet\",\"4\")","v":"0"},"<Begrundelse>",null,"Vælg konsekvens",{"$f":"_xlfn.IFS(J24=\"Vælg konsekvens\",\"0\",J24=\"Ikke relevant\",\"0\",J24=\"Lav\",\"1\",J24=\"Medium\",\"2\",J24=\"Høj\",\"3\",J24=\"Meget høj\",\"4\")","v":"0"},null,{"$f":"G24*K24","v":0},null,"<Begrundelse>",null,"Vælg konsekvens",{"$f":"_xlfn.IFS(Q24=\"Vælg konsekvens\",\"0\",Q24=\"Ikke relevant\",\"0\",Q24=\"Lav\",\"1\",Q24=\"Medium\",\"2\",Q24=\"Høj\",\"3\",Q24=\"Meget høj\",\"4\")","v":"0"},null,0,null,"<Begrundelse>",{"$f":"IF(T24>=7,1,0)","v":0},{"$f":"IF(W24=1,W11+W12+W13+W14+W15+W16+W17+W18+W19+W20+W21+W22+W23+1,0)","v":0}]
[null,null,null,null,"< Tilføj trussel >  ","Vælg sandsynlighed","0","<Begrundelse>",null,"Vælg konsekvens","0",null,0,null,"<Begrundelse>",null,"Vælg konsekvens","0",null,0,null,"<Begrundelse>",0,{"$f":"IF(W25=1,W12+W13+W14+W15+W16+W18+W19+W20+W21+W23+W24+1,0)","v":0}]

{"sheet":"Opgaveliste","index":2,"n_rows":19,"n_cols":32,"rows_kept":19,"cut":false,"hidden":false,"merged":[[4,1,4,2],[5,1,5,2]]}
[]
[null,"Opgaveliste afledt af udarbejdet risikovurdering"]
[]
[]
[null,"Systemets navn:",null,null,"Vurdering af relevante risici"]
[null,{"$f":"Risikovurdering!B5","v":"<Systemnavn eller procesnavn>"}]
[null,"Systemet",null,null,"Observation Nr. 1",null,"Observation Nr. 2",null,"Observation Nr. 3",null,"Observation Nr. 4",null,"Observation Nr. 5",null,"Observation Nr. 6",null,"Observation Nr. 7",null,"Observation Nr. 8",null,"Observation Nr. 9",null,"Observation Nr. 10",null,"Observation Nr. 11",null,"Observation Nr. 12","Observation Nr. 13","Observation Nr. 14","Observation Nr. 15","Observation Nr. 16","Observation Nr. 17"]
[null,"Dato for udarbejdelsen af risikovurderingen:",{"$f":"Risikovurdering!C21","v":"<dd-mm-åååå>"},null,{"$f":"_xlfn.XLOOKUP(1,Risikovurdering!X7:X25,Risikovurdering!T7:T25,\"-\")","v":"-"},null,{"$f":"_xlfn.XLOOKUP(2,Risikovurdering!X7:X25,Risikovurdering!T7:T25,\"-\")","v":"-"},null,{"$f":"_xlfn.XLOOKUP(3,Risikovurdering!X7:X25,Risikovurdering!T7:T25,\"-\")","v":"-"},null,{"$f":"_xlfn.XLOOKUP(4,Risikovurdering!X7:X25,Risikovurdering!T7:T25,\"-\")","v":"-"},null,{"$f":"_xlfn.XLOOKUP(5,Risikovurdering!X7:X25,Risikovurdering!T7:T25,\"-\")","v":"-"},null,{"$f":"_xlfn.XLOOKUP(6,Risikovurdering!X7:X25,Risikovurdering!T7:T25,\"-\")","v":"-"},null,{"$f":"_xlfn.XLOOKUP(7,Risikovurdering!X7:X25,Risikovurdering!T7:T25,\"-\")","v":"-"},null,{"$f":"_xlfn.XLOOKUP(8,Risikovurdering!X7:X25,Risikovurdering!T7:T25,\"-\")","v":"-"},null,{"$f":"_xlfn.XLOOKUP(9,Risikovurdering!X7:X25,Risikovurdering!T7:T25,\"-\")","v":"-"},null,{"$f":"_xlfn.XLOOKUP(10,Risikovurdering!X7:X25,Risikovurdering!T7:T25,\"-\")","v":"-"},null,{"$f":"_xlfn.XLOOKUP(11,Risikovurdering!X7:X25,Risikovurdering!T7:T25,\"-\")","v":"-"},null,{"$f":"_xlfn.XLOOKUP(12,Risikovurdering!X7:X25,Risikovurdering!T7:T25,\"-\")","v":"-"},{"$f":"_xlfn.XLOOKUP(13,Risikovurdering!X7:X25,Risikovurdering!T7:T25,\"-\")","v":"-"},{"$f":"_xlfn.XLOOKUP(14,Risikovurdering!X7:X25,Risikovurdering!T7:T25,\"-\")","v":"-"},{"$f":"_xlfn.XLOOKUP(15,Risikovurdering!X7:X25,Risikovurdering!T7:T25,\"-\")","v":"-"},{"$f":"_xlfn.XLOOKUP(16,Risikovurdering!X7:X25,Risikovurdering!T7:T25,\"-\")","v":"-"},{"$f":"_xlfn.XLOOKUP(17,Risikovurdering!X7:X25,Risikovurdering!T7:T25,\"-\")","v":"-"}]
[null,"Systemejer:",{"$f":"Risikovurdering!C12","v":"<Navn>"},null,{"$f":"_xlfn.XLOOKUP(1,Risikovurdering!X7:X25,Risikovurdering!E7:E25,\"-\")","v":"-"},null,{"$f":"_xlfn.XLOOKUP(2,Risikovurdering!X7:X25,Risikovurdering!E7:E25,\"-\")","v":"-"},null,{"$f":"_xlfn.XLOOKUP(3,Risikovurdering!X7:X25,Risikovurdering!E7:E25,\"-\")","v":"-"},null,{"$f":"_xlfn.XLOOKUP(4,Risikovurdering!X7:X25,Risikovurdering!E7:E25,\"-\")","v":"-"},null,{"$f":"_xlfn.XLOOKUP(5,Risikovurdering!X7:X25,Risikovurdering!E7:E25,\"-\")","v":"-"},null,{"$f":"_xlfn.XLOOKUP(6,Risikovurdering!X7:X25,Risikovurdering!E7:E25,\"-\")","v":"-"},null,{"$f":"_xlfn.XLOOKUP(7,Risikovurdering!X7:X25,Risikovurdering!E7:E25,\"-\")","v":"-"},null,{"$f":"_xlfn.XLOOKUP(8,Risikovurdering!X7:X25,Risikovurdering!E7:E25,\"-\")","v":"-"},null,{"$f":"_xlfn.XLOOKUP(9,Risikovurdering!X7:X25,Risikovurdering!E7:E25,\"-\")","v":"-"},null,{"$f":"_xlfn.XLOOKUP(10,Risikovurdering!X7:X25,Risikovurdering!E7:E25,\"-\")","v":"-"},null,{"$f":"_xlfn.XLOOKUP(11,Risikovurdering!X7:X25,Risikovurdering!E7:E25,\"-\")","v":"-"},null,{"$f":"_xlfn.XLOOKUP(12,Risikovurdering!X7:X25,Risikovurdering!E7:E25,\"-\")","v":"-"},{"$f":"_xlfn.XLOOKUP(13,Risikovurdering!X7:X25,Risikovurdering!E7:E25,\"-\")","v":"-"},{"$f":"_xlfn.XLOOKUP(14,Risikovurdering!X7:X25,Risikovurdering!E7:E25,\"-\")","v":"-"},{"$f":"_xlfn.XLOOKUP(15,Risikovurdering!X7:X25,Risikovurdering!E7:E25,\"-\")","v":"-"},{"$f":"_xlfn.XLOOKUP(16,Risikovurdering!X7:X25,Risikovurdering!E7:E25,\"-\")","v":"-"},{"$f":"_xlfn.XLOOKUP(17,Risikovurdering!X7:X25,Risikovurdering!E7:E25,\"-\")","v":"-"}]
[null,"Systemforvalter:",{"$f":"Risikovurdering!C13","v":"<Navn>"},null,"Forklaring",null,"Forklaring",null,"Forklaring ",null,"Forklaring",null,"Forklaring",null,"Forklaring",null,"Forklaring",null,"Forklaring",null,"Forklaring",null,"Forklaring",null,"Forklaring",null,"Forklaring","Forklaring","Forklaring","Forklaring","Forklaring","Forklaring"]
[null,"Evt. superbruger:",{"$f":"Risikovurdering!C14","v":"<Navn>"},null,{"$f":"_xlfn.XLOOKUP(1,Risikovurdering!X7:X25,Risikovurdering!V7:V25,\"-\")","v":"-"},null,{"$f":"_xlfn.XLOOKUP(2,Risikovurdering!X7:X25,Risikovurdering!V7:V25,\"-\")","v":"-"},null,{"$f":"_xlfn.XLOOKUP(3,Risikovurdering!X7:X25,Risikovurdering!V7:V25,\"-\")","v":"-"},null,{"$f":"_xlfn.XLOOKUP(4,Risikovurdering!X7:X25,Risikovurdering!V7:V25,\"-\")","v":"-"},null,{"$f":"_xlfn.XLOOKUP(5,Risikovurdering!X7:X25,Risikovurdering!V7:V25,\"-\")","v":"-"},null,{"$f":"_xlfn.XLOOKUP(6,Risikovurdering!X7:X25,Risikovurdering!V7:V25,\"-\")","v":"-"},null,{"$f":"_xlfn.XLOOKUP(7,Risikovurdering!X7:X25,Risikovurdering!V7:V25,\"-\")","v":"-"},null,{"$f":"_xlfn.XLOOKUP(8,Risikovurdering!X7:X25,Risikovurdering!V7:V25,\"-\")","v":"-"},null,{"$f":"_xlfn.XLOOKUP(9,Risikovurdering!X7:X25,Risikovurdering!V7:V25,\"-\")","v":"-"},null,{"$f":"_xlfn.XLOOKUP(10,Risikovurdering!X7:X25,Risikovurdering!V7:V25,\"-\")","v":"-"},null,{"$f":"_xlfn.XLOOKUP(11,Risikovurdering!X7:X25,Risikovurdering!V7:V25,\"-\")","v":"-"},null,{"$f":"_xlfn.XLOOKUP(12,Risikovurdering!X7:X25,Risikovurdering!V7:V25,\"-\")","v":"-"},{"$f":"_xlfn.XLOOKUP(13,Risikovurdering!X7:X25,Risikovurdering!V7:V25,\"-\")","v":"-"},{"$f":"_xlfn.XLOOKUP(14,Risikovurdering!X7:X25,Risikovurdering!V7:V25,\"-\")","v":"-"},{"$f":"_xlfn.XLOOKUP(15,Risikovurdering!X7:X25,Risikovurdering!V7:V25,\"-\")","v":"-"},{"$f":"_xlfn.XLOOKUP(16,Risikovurdering!X7:X25,Risikovurdering!V7:V25,\"-\")","v":"-"},{"$f":"_xlfn.XLOOKUP(17,Risikovurdering!X7:X25,Risikovurdering!V7:V25,\"-\")","v":"-"}]
[null,null,null,null,"Hvad skal der gøres for at minimere sårbarheden?",null,"Hvad skal der gøres for at minimere sårbarheden?",null,"Hvad skal der gøres for at minimere sårbarheden?",null,"Hvad skal der gøres for at minimere sårbarheden?",null,"Hvad skal der gøres for at minimere sårbarheden?",null,"Hvad skal der gøres for at minimere sårbarheden?",null,"Hvad skal der gøres for at minimere sårbarheden?",null,"Hvad skal der gøres for at minimere sårbarheden?",null,"Hvad skal der gøres for at minimere sårbarheden?",null,"Hvad skal der gøres for at minimere sårbarheden?",null,"Hvad skal der gøres for at minimere sårbarheden?",null,"Hvad skal der gøres for at minimere sårbarheden?","Hvad skal der gøres for at minimere sårbarheden?","Hvad skal der gøres for at minimere sårbarheden?","Hvad skal der gøres for at minimere sårbarheden?","Hvad skal der gøres for at minimere sårbarheden?","Hvad skal der gøres for at minimere sårbarheden?"]
[null,null,null,null,"<Udfyld>",null,"<Udfyld>",null,"<Udfyld>",null,"<Udfyld>",null,"<Udfyld>",null,"<Udfyld>",null,"<Udfyld>",null,"<Udfyld>",null,"<Udfyld>",null,"<Udfyld>",null,"<Udfyld>",null,"<Udfyld>","<Udfyld>","<Udfyld>","<Udfyld>","<Udfyld>","<Udfyld>"]
[null,null,null,null,"Hvem er involveret i opgaven?",null,"Hvem er involveret i opgaven?",null,"Hvem er involveret i opgaven?",null,"Hvem er involveret i opgaven?",null,"Hvem er involveret i opgaven?",null,"Hvem er involveret i opgaven?",null,"Hvem er involveret i opgaven?",null,"Hvem er involveret i opgaven?",null,"Hvem er involveret i opgaven?",null,"Hvem er involveret i opgaven?",null,"Hvem er involveret i opgaven?",null,"Hvem er involveret i opgaven?","Hvem er involveret i opgaven?","Hvem er involveret i opgaven?","Hvem er involveret i opgaven?","Hvem er involveret i opgaven?","Hvem er involveret i opgaven?"]
[null,null,null,null,"<Navn og område>",null,"<Navn og område>",null,"<Navn og område>",null,"<Navn og område>",null,"<Navn og område>",null,"<Navn og område>",null,"<Navn og område>",null,"<Navn og område>",null,"<Navn og område>",null,"<Navn og område>",null,"<Navn og område>",null,"<Navn og område>","<Navn og område>","<Navn og område>","<Navn og område>","<Navn og område>","<Navn og område>"]
[null,null,null,null,"Opgaven er løst inden:",null,"Opgaven er løst inden:",null,"Opgaven er løst inden:",null,"Opgaven er løst inden:",null,"Opgaven er løst inden:",null,"Opgaven er løst inden:",null,"Opgaven er løst inden:",null,"Opgaven er løst inden:",null,"Opgaven er løst inden:",null,"Opgaven er løst inden:",null,"Opgaven er løst inden:",null,"Opgaven er løst inden:","Opgaven er løst inden:","Opgaven er løst inden:","Opgaven er løst inden:","Opgaven er løst inden:","Opgaven er løst inden:"]
[null,null,null,null,"<dd-mm-åååå>",null,"<dd-mm-åååå>",null,"<dd-mm-åååå>",null,"<dd-mm-åååå>",null,"<dd-mm-åååå>",null,"<dd-mm-åååå>",null,"<dd-mm-åååå>",null,"<dd-mm-åååå>",null,"<dd-mm-åååå>",null,"<dd-mm-åååå>",null,"<dd-mm-åååå>",null,"<dd-mm-åååå>","<dd-mm-åååå>","<dd-mm-åååå>","<dd-mm-åååå>","<dd-mm-åååå>","<dd-mm-åååå>"]
[null,null,null,null,"Hvem er ansvarlig for opgaven?",null,"Hvem er ansvarlig for opgaven?",null,"Hvem er ansvarlig for opgaven?",null,"Hvem er ansvarlig for opgaven?",null,"Hvem er ansvarlig for opgaven?",null,"Hvem er ansvarlig for opgaven?",null,"Hvem er ansvarlig for opgaven?",null,"Hvem er ansvarlig for opgaven?",null,"Hvem er ansvarlig for opgaven?",null,"Hvem er ansvarlig for opgaven?",null,"Hvem er ansvarlig for opgaven?",null,"Hvem er ansvarlig for opgaven?","Hvem er ansvarlig for opgaven?","Hvem er ansvarlig for opgaven?","Hvem er ansvarlig for opgaven?","Hvem er ansvarlig for opgaven?","Hvem er ansvarlig for opgaven?"]
[null,null,null,null,"<Navn og område>",null,"<Navn og område>",null,"<Navn og område>",null,"<Navn og område>",null,"<Navn og område>",null,"<Navn og område>",null,"<Navn og område>",null,"<Navn og område>",null,"<Navn og område>",null,"<Navn og område>",null,"<Navn og område>",null,"<Navn og område>","<Navn og område>","<Navn og område>","<Navn og område>","<Navn og område>","<Navn og område>"]

{"sheet":"Konsekvensanalyse","index":3,"n_rows":18,"n_cols":12,"rows_kept":18,"cut":false,"hidden":false,"merged":[[0,0,0,1],[7,1,7,8],[8,1,8,8],[9,1,9,8],[2,0,2,8],[6,1,6,8],[4,1,4,8],[5,1,5,8],[3,0,3,8],[12,1,12,8],[2,11,4,20],[17,0,17,9],[18,0,18,9],[11,1,11,8],[2,9,3,9],[14,0,14,8],[10,1,10,8],[13,1,13,8]]}
["Vurdering af behov for konsekvensanalyse "]
[]
["1. Vurdering af, om der skal udarbejdes en konsekvensanalyse",null,null,null,null,null,null,null,null,null,null,"Hvis der er behov for at udarbejde en konsekvensanalyse, skal du kontakte kommunens sikkerhedsrådgiver på sikkerhed@jammerbugt.dk. Sikkerhedsrådgiveren vil herefter hjælpe dig videre i processen."]
["Udfyld nedenstående spørgsmål. \nHvis bare ét af de to nedenstående vurderingskriterier er et 'Ja', SKAL du kontakte kommunens sikkerhedsrådgiver på sikkerhed@jammerbugt.dk for sparring om, hvorvidt der skal udarbejdes en konsekvensanalyse. "]
[1,"Sker der i systemet automatiske afgørelser, herunder profilering? Det vil sige behandlinger, der fører til afgørelser om en fysisk persons rettigheder til et produkt, en service, en potentiel mulighed eller begunstigelse, der er baseret på en hvilken som helst form for automatiseret afgørelse (herunder profilering).",null,null,null,null,null,null,null,"Vælg "]
[2,"Behandles der profilering af fysiske personer i stor skala (anvendelse af personoplysninger til at evaluere bestemte personlige forhold)? Stor skala defineres som værende: 1) Behandling af over 500 registreredes oplysninger, 2) mængden af data og/eller forskellige data, der behandles, 3) databehandlingens varighed eller regelmæssighed, og 4) databehandlingens georgrafiske omfang",null,null,null,null,null,null,null,"Vælg "]
[3,"Behandles data ved brug af nye teknologier? Nye teknologier defineres som værende fx cloud-services, applikationer med borgerkontakt, kunstig intelligens, brug af elektroniske identiteter ",null,null,null,null,null,null,null,"Vælg "]
[4,"Behandles der biometriske data for at kunne identificere en fysisk person? Eks. fingeraftryk, ansigtstræk, stemme og iris.  ",null,null,null,null,null,null,null,"Vælg "]
[5,"Behandles der genetiske data? Eks. blod- og/eller vævsprøver. ",null,null,null,null,null,null,null,"Vælg "]
[6,"Behandles der lokationsdata, hvor en fysisk person befinder sig? ",null,null,null,null,null,null,null,"Vælg "]
[7,"Behandles der personoplysninger om sårbare personer? Eks. børn, psykisk syge, asylansøgere, ansatte, ældre, patienter og i tilfælde, hvor der kan konstateres ubalance i forholdet mellem den registreredes og den dataansvarliges position",null,null,null,null,null,null,null,"Vælg "]
[8,"Vil et sikkerhedsbrud i systemet medføre en direkte effekt på en persons fysiske helbred eller på sikkerheden for en fysisk person? ",null,null,null,null,null,null,null,"Vælg "]
[9,"Indeholder risikovurderingen mindst en 'rød' eller 'orange' trussel med høj eller middel høj risiko for den registrerede? (se kolonne med 'Risikovægtning')",null,null,null,null,null,null,null,"Vælg "]
[10,"Indeholder risikovurderingen mindst en trussel med 'meget høj' konsekvens for den registrerede? (se kolonne med 'Konsekvens')",null,null,null,null,null,null,null,"Vælg "]
["Er der behov for at udarbejde en konsekvensanalyse?",null,null,null,null,null,null,null,null,"Vælg "]
[]
[]
["2. Efter samtale med sikkerhedsrådgiveren ligger følgende til grund for, at en konsekvensanalyse ikke skal udarbejdes. Skriv i fritekst i nedenstående boks, hvilke argumenter kommunen har lagt til grund for, at der enten bør eller ikke børn udarbejdes en konsekvensanalyse."]

{"sheet":"Trusselskatalog","index":4,"n_rows":82,"n_cols":3,"rows_kept":82,"cut":false,"hidden":false,"merged":[[68,0,71,0],[68,1,71,1],[72,0,76,0],[72,1,76,1],[77,0,81,0],[77,1,81,1],[1,0,13,0],[1,1,13,1],[14,1,15,1],[16,1,19,1],[20,1,24,1],[14,0,15,0],[20,0,24,0],[16,0,19,0],[25,1,28,1],[63,0,67,0],[56,0,62,0],[50,0,55,0],[47,0,48,0],[38,0,43,0],[29,0,37,0],[29,1,37,1],[38,1,43,1],[47,1,48,1],[50,1,55,1],[56,1,62,1],[63,1,67,1],[25,0,28,0],[44,0,46,0],[44,1,46,1]]}
["Nummer ","Trussel ","Underliggende trusler "]
[1,"Manglende adgangsstyring og kontrol af brugere","Systemet er svært af drifte og udvikle pga. mangelfuld ansvarsfordeling."]
[null,null,"Medarbejdere anvender private tjenester privat mail, Dropbox, ect.) til at opbebare og arbejde med data på. "]
[null,null,"Medarbejdere deler fortrolige data eller personoplysninger med eksterne interessenter via almindelig mail (ikke-sikker mail uden brug af passende kryptering)."]
[null,null,"Medarbejdere får adgang til informationer, som de ikke bør have adgang til. "]
[null,null,"Medarbejdere gemmer fortrolige informationer på fil-drev, hvor sikkerhedsniveauet er lavere end i selve systemet/applikationen, hvorved informationerne bliver kompromitteret, da de kommer til andres kendskab. "]
[null,null,"Medarbejdere har for mange rettigheder til forretningssystemet f.eks. grundet manglende kontrol med rettigheder."]
[null,null,"For mange medarbejdere har superbruger-/administrativerettigheder til forretningssystemet, f.eks. grundet mangelfulde muligheder for rettighedsstyring. "]
[null,null,"Fratrådte medarbejderes adgang fjernes ikke og vil derved kunne bruges til at kompromittere aktivet/systemet."]
[null,null,"Systemadministratorer har for mange rettigheder, f.eks. grundet utilstrækkeligt rettighedssetup eller manglende kontrol med rettigheder."]
[null,null,"Manglende eller mangelfulde organisatoriske sikringsforanstaltninger omkring systemet, f.eks. uklarhed omkring roller og ansvar, kompromitterer sikkerheden på systemet/systemerne."]
[null,null,"Medarbejdere (ikke administratorer) har lokaladministratorrettigheder, hvilket kompromitterer sikkerhedsniveauet."]
[null,null,"Medarbejdere tiltvinger sig uretmæssig logisk adgang til forretningssystemer, f.eks. ved gæt af kodeord."]
[null,null,"Medarbejdere håndterer/klassificerer data."]
[2,"Manglende beskyttelse af data ved forsendelse (fx lav eller ingen kryptering)","Medarbejdere flytter fortrolige data via USB-sticks, hvorved data kompromitteres, f.eks. ved genbrug af USB-nøgler eller ved tab af disse."]
[null,null,"Manglende sikkerhedspatches for Adobe Reader, Flashplayer, Java, Microsoft Office, .NET og/eller Internet Explorer osv."]
[3,"Problemer i forbindelse med udlicitering som fx, at leverandør går konkurs, eller at samarbejdet brat ophører","Leverandørens medarbejdere bryder bevidst sikkerheden."]
[null,null,"Leverandørens medarbejdere får adgang til data, som de ikke bør have adgang til. "]
[null,null,"Medarbejdere deler fortrolige data eller personoplysninger med kollegaer via mail, hvilket kompromitter sikkerheden, f.eks. ved at data sendes til den forkerte, eller ved at mails placeres i fællespostkasser."]
[null,null,"Manglende sikkerhedsmæssig stillingtagen i kontrakter, kompromitterer sikkerheden på systemet. "]
[4,"Ubevidste brugerfejl som fx tab af it-udstyr, forlæggelse af print eller videregivelse af personoplysninger ved en fejl","Medarbejder glemmer/mister enheden PC/Mobiltelefon) i f.eks. Taxa, tog, fly e.l."]
[null,null,"Uvedkommende får adgang til data på stjålne klienter (mobiltelefon, IPAD, Bærbar PC)."]
[null,null,"Medarbejdere kompromitterer uforsætligt sikkerheden, f.eks. ved forkert systembrug eller uopmærksomhed."]
[null,null,"Medarbejdere afslører utilsigtet fortrolige oplysninger under arbejde i det offentlige rum (fx ved at arbejde på en måde, så andre kan kigge over skulderen, eller tale højt, så andre kan høre med)."]
[null,null,"Medarbejdere glemmer at journalisere. "]
[5,"Bevidste brugerfejl som fx misbrug af personoplysninger, korruption eller bedrageri","Medarbejdere foretager tyveri af data/software/hardware."]
[null,null,"Medarbejdere misbruger systemer til andet end tiltænkt. "]
[null,null,"Medarbejderen udfører erhvervsmæssig spionage."]
[null,null,"Medarbejdere kompromitterer bevidst sikkerheden. "]
[6,"It-angreb som hacking, phishing mv. (kig evt. i databehandleraftale for beskrivelse af tekniske sikkerhedsforanstaltninger)","Hackerangreb (avanceret) med hensigten at udføre spionage (Advanced Persistent Threat)."]
[null,null,"Hackerangreb (generelt) på systemet. "]
[null,null,"Hackerangreb, hvor der anvendes overbelastning til at gøre systemet utilgængeligt (DDoSangreb)."]
[null,null,"Hackerangreb, hvor det bliver muligt at opsnappe data mellem to parter (Man-in-the-middle angreb)."]
[null,null,"Hackerangreb, hvor man bruger brute-force på systemet til at forsøge at gætte et brugernavn og adgangskode."]
[null,null,"Hackerangreb, hvor systemet bliver helt eller delvist ubrugeligt, og der bliver krævet løsepenge (RansomWare)."]
[null,null,"Infektion af server, klienter eller mobile enheder med malware og vira"]
[null,null,"Aflytning af mobilenhed,"]
[null,null,"Network traffic hijack (angreb der forsøger at ændre netværketsrouting, adressetabeller o.l.)."]
[7,"It-nedbrud (tip: er systemer ofte ikke tilgængeligt?)","Længerevarende systemnedbrud."]
[null,null,"Opdatering ødelægger funktionalitet på klient."]
[null,null,"Opdatering ødelægger funktionalitet på server. "]
[null,null,"Backup er mangelfuld eller ikke eksisterende, hvorfor informationer ikke kan retableres. "]
[null,null,"Mange klienter/servere kører ikke seneste opdatering for antivirus-systemet."]
[null,null,"Mange klienter/servere kører ikke seneste sikkerhedspatch for operativsystemet."]
[8,"Manglende sletning af personoplysninger","Der er ikke taget stilling til slettefrister eller udarbejdet en skriftlig procedure for sletning."]
[null,null,"Medarbejder glemmer at slette personoplysninger manuelt."]
[null,null,"Systemet fejler, og den automatiske slettefunktioner er ude af drift."]
[9,"Mangelfuld logning og/eller ingen kontrol af log","Logning er ikke sat korrekt op, hvorfor fortroligheden kan kompromitters, uden dette opdages."]
[null,null,"Medarbejdere foranlediges til at udlevere fortrolige oplysninger. "]
[10,"Tab af nøglemedarbejdere, fx i tilfælde af ansættelsesophør uden overlevering ","Systemet er svært at drifte og udvikle pga. fravær af nøgleperson. "]
[11,"Fysiske trusler som brand, bombetrussel, oversvømmelse, orkan mv.","Brand (kontorlokaler, naboejendom, serverrum). "]
[null,null,"Forsyningssvigt (el, vand, strøm, internet, køl osv.). "]
[null,null,"Fremmede tiltvinger sig fysisk adgang til aktivitet til aktivet/systemer/enheden (indbrud - tyveri)."]
[null,null,"Krig eller terror."]
[null,null,"Miljøskader (fx giftudslip) i kontorlokaler eller naboområde."]
[null,null,"Vandskader i kontorlokaler/serverrum/kælder/arkiver."]
[12,"Systemfejl, som fx medfører læk eller offentliggørelse af fortrolige oplysninger","Systemleverandøren har ikke tilstrækkelige sikkerhedsprocedurer, -foranstaltninger og -kontroller, hvilket kompromitterer sikkerheden på systemet."]
[null,null,"Co-location leaks, dvs. systemet deler infrastruktur, servere eller cloud sammen med andre kunder og fejlkonfigurationer forekommer, der medfører læk. "]
[null,null,"Data i systemet er ikke fuldstændigt pålidelige, fx grundet systemets manglende kontrol af data under indtastning."]
[null,null,"Fejl i forretningssystemet."]
[null,null,"Fejl i hardware eller operativsystem der understøtter forretningssystemet, herunder indbyggede/ukendte fejl og konfigurationsfejl."]
[null,null,"Systemadministrator kompromitterer bevidst sikkerheden."]
[null,null,"Systemadministrator kompromitterer sikkerheden uforsætligt, f.eks. ved forkert systembrug eller uopmærksomhed."]
[13,"Systemdrift fx manglende viden om hvordan man drifter systemet og manglende mulighed for udvikling af systemet ","Systemet er underdimensioneret grundet uoverensstemmelse mellem estimat af fremtidigt behov og nuværende it-kapacitet."]
[null,null,"Systemet er svært at drifte og udvikle pga. mangelfuld dokumentation."]
[null,null,"Systemet er svært at drifte og udvikle pga. mangelfuld driftsprocedure."]
[null,null,"Systemet er svært at drifte og udvikle pga. legacy-problemer."]
[null,null,"Uanonymiserede kopier af data anvendes i testsystemer, hvorved fortrolige data utilsigtet bliver kompromitteret."]
[14,"Tredjelandsoverførsler fx manglende overførselsgrundlag, sikkerhedsforanstaltninger og gennemsigtighed.","Personoplysninger overføres til usikre tredjelande uden gyldigt overførselsgrundlag."]
[null,null,"Det sikres ikke, at det pågældende tredjeland har tilsvarende databeskyttelsesrettigheder som i andre EU-lande"]
[null,null,"Der er mangel på sikkerhedsforanstaltninger i forbindelse med tredjelandsoverførslerne."]
[null,null,"Der er mangel på gennemsigtighed i forbindelse med tredjelandsoverførslerne."]
[15,"Placering af dataansvar og misbrug af data","Den dataansvarlige påser og kontrollerer ikke databehandlerens og underdatabehandlerens ageren."]
[null,null,"Der indgås aftaler om databehandlingen uden forhåndsgodkendelse af den dataansvarlige."]
[null,null,"Der opstår uvished/tvivl om placeringen af dataansvaret."]
[null,null,"Databehandleren eller andre tredjeparter bruger, uden godkendelse fra den dataansvarlige, personoplysninger til egne formål, fx markedsføring."]
[null,null,"Instruksen for behandlingen af data er uklar eller forkert og efterlader fx rum til videregivelse af data til formål uden lovhjemmel."]
[16,"Manglende overholdelse af de registreredes rettigheder","De registrerede oplyses ikke om behandlingen af deres personoplysninger, herunder deres rettigheder i forbindelse hermed."]
[null,null,"De registrerede har ikke mulighed for fx at gøre indsigelser mod eller opnå indsigt i behandlingen."]
[null,null,"De registerede er forhindret i at føre kontrol med egne data."]
[null,null,"Manglende gennemsigtighed, fx i forbindelse med at forklare behandlingens/systemets formål og resultater."]
[null,null,"Den dataansvarlige imødekommer ved en fejl en registrerets anmodning om sletning af personoplysninger, som ikke bør slettes grundet lovgivning."]

{"sheet":"Arbejdsark med formler ","index":5,"n_rows":152,"n_cols":16,"rows_kept":152,"cut":false,"hidden":false,"merged":[]}
[]
[]
[null,"Sandsynlighed","Vægtning"]
[null,"Vælg sandsynlighed",null,null,null,0,0,{"$f":"F4*G4","v":0}]
[null,"Ikke relevant",0,null,null,0,1,{"$f":"F5*G5","v":0}]
[null,"Usandsynligt",1,null,null,0,2,0]
[null,"Mindre sandsynligt",2,null,null,0,3,0]
[null,"Sandsynligt",3,null,null,0,4,0]
[null,"Forventet",4,null,null,1,1,1]
[null,null,null,null,null,1,2,2]
[null,null,null,null,null,1,3,3]
[null,null,null,null,null,1,4,4]
[null,"Konsekvens",null,null,null,2,1,2]
[null,"Vælg konsekvens",null,null,null,2,2,4]
[null,"Ikke relevant",0,null,null,2,3,6]
[null,"Lav",1,null,null,2,4,8]
[null,"Medium",2,null,null,3,1,3]
[null,"Høj",3,null,null,3,2,6]
[null,"Meget høj",4,null,null,3,3,9]
[null,null,null,null,null,3,4,12]
[null,null,null,null,null,4,1,4]
[null,null,null,null,null,4,2,8]
[null,"Risiko ",null,null,null,4,3,12]
[null,"Ikke relevant ",0,null,null,4,4,16]
[null,"Lav ","1 til 3"]
[null,"Under middel","4 til 7"]
[null,"Middel ","8 til 11"]
[null,"Under middel","12 til 15"]
[null,"Høj",16]
[]
[null,"Vælg kategori"]
[null,"Egenudviklet it-løsning"]
[null,"Eksternt hostet it-løsning (leverandør opbevarer data)"]
[null,"Internt hostet it-løsning (kommunen opbevarer data)"]
[null,"Proces / arbejdsgang"]
[null,"Andet"]
[]
[]
[]
[]
[]
[]
[null,"Klasifikation af Data"]
[null,"Vælg kategorier"]
[null,"Ingen personoplysninger"]
[null,"Almindelige personoplysninger"]
[null,"Fortrolige personoplysninger"]
[null,"Følsomme personoplysninger"]
[]
[]
[null,"Databehandleraftale"]
[null,"Vælg databehandleraftale"]
[null,"Ja"]
[null,"Nej"]
[null,"Ikke relevant"]
[]
[]
[null,"Forvaltning"]
[null,"Vælg forvaltning"]
[null,"Central Stab"]
[null,"Børn og Familie "]
[null,"Social, Sundhed og Beskæftigelse"]
[null,"Vækst og Udvikling"]
[]
[]
[null,"Konsekvenstype"]
[null,"Vælg konsekvenstype","N10","N11","N12","N13","N14","N15","N16","N17","N18","N19","N20","N21","N22","N23"]
[null,"Brud på fortrolighed ",{"$f":"IF(ISTEXT(FIND(\"Brud på fortrolighed\",§B§69)),\" \",\"Brud på fortrolighed \"&Risikovurdering!L7)","v":"Brud på fortrolighed Brud på fortrolighed Brud på integritet "},{"$f":"IF(ISTEXT(FIND(\"Brud på fortrolighed\",§B§69)),\" \",\"Brud på fortrolighed \"&Risikovurdering!L8)","v":"Brud på fortrolighed Brud på fortrolighed "},{"$f":"IF(ISTEXT(FIND(\"Brud på fortrolighed\",§B§69)),\" \",\"Brud på fortrolighed \"&Risikovurdering!L9)","v":"Brud på fortrolighed Brud på tilgængelighed "},{"$f":"IF(ISTEXT(FIND(\"Brud på fortrolighed\",§B§69)),\" \",\"Brud på fortrolighed \"&Risikovurdering!L10)","v":"Brud på fortrolighed Brud på integritet Brud på fortrolighed "},{"$f":"IF(ISTEXT(FIND(\"Brud på fortrolighed\",§B§69)),\" \",\"Brud på fortrolighed \"&Risikovurdering!L11)","v":"Brud på fortrolighed Brud på integritet Brud på fortrolighed "},{"$f":"IF(ISTEXT(FIND(\"Brud på fortrolighed\",§B§69)),\" \",\"Brud på fortrolighed \"&Risikovurdering!L12)","v":"Brud på fortrolighed Brud på tilgængelighed Brud på integritet Brud på fortrolighed "},{"$f":"IF(ISTEXT(FIND(\"Brud på fortrolighed\",§B§69)),\" \",\"Brud på fortrolighed \"&Risikovurdering!L13)","v":"Brud på fortrolighed Brud på tilgængelighed "},{"$f":"IF(ISTEXT(FIND(\"Brud på fortrolighed\",§B§69)),\" \",\"Brud på fortrolighed \"&Risikovurdering!L14)","v":"Brud på fortrolighed Brud på fortrolighed "},{"$f":"IF(ISTEXT(FIND(\"Brud på fortrolighed\",§B§69)),\" \",\"Brud på fortrolighed \"&Risikovurdering!L15)","v":"Brud på fortrolighed Brud på fortrolighed Brud på integritet "},{"$f":"IF(ISTEXT(FIND(\"Brud på fortrolighed\",§B§69)),\" \",\"Brud på fortrolighed \"&Risikovurdering!L16)","v":"Brud på fortrolighed Brud på tilgængelighed "},{"$f":"IF(ISTEXT(FIND(\"Brud på fortrolighed\",§B§69)),\" \",\"Brud på fortrolighed \"&Risikovurdering!L18)","v":"Brud på fortrolighed Brud på tilgængelighed "},{"$f":"IF(ISTEXT(FIND(\"Brud på fortrolighed\",§B§69)),\" \",\"Brud på fortrolighed \"&Risikovurdering!L19)","v":"Brud på fortrolighed Brud på fortrolighed Brud på tilgængelighed "},{"$f":"IF(ISTEXT(FIND(\"Brud på fortrolighed\",§B§69)),\" \",\"Brud på fortrolighed \"&Risikovurdering!L20)","v":"Brud på fortrolighed Brud på tilgængelighed Brud på integritet Brud på fortrolighed "},{"$f":"IF(ISTEXT(FIND(\"Brud på fortrolighed\",§B§69)),\" \",\"Brud på fortrolighed \"&Risikovurdering!L21)","v":"Brud på fortrolighed Brud på tilgængelighed Brud på integritet Brud på fortrolighed "}]
[null,"Brud på integritet",{"$f":"IF(ISTEXT(FIND(\"Brud på integritet\",§B§70)),\" \",\"Brud på integritet \"&Risikovurdering!L7)","v":"Brud på integritet Brud på fortrolighed Brud på integritet "},{"$f":"IF(ISTEXT(FIND(\"Brud på integritet\",§B§70)),\" \",\"Brud på integritet \"&Risikovurdering!L8)","v":"Brud på integritet Brud på fortrolighed "},{"$f":"IF(ISTEXT(FIND(\"Brud på integritet\",§B§70)),\" \",\"Brud på integritet \"&Risikovurdering!L9)","v":"Brud på integritet Brud på tilgængelighed "},{"$f":"IF(ISTEXT(FIND(\"Brud på integritet\",§B§70)),\" \",\"Brud på integritet \"&Risikovurdering!L10)","v":"Brud på integritet Brud på integritet Brud på fortrolighed "},{"$f":"IF(ISTEXT(FIND(\"Brud på integritet\",§B§70)),\" \",\"Brud på integritet \"&Risikovurdering!L11)","v":"Brud på integritet Brud på integritet Brud på fortrolighed "},{"$f":"IF(ISTEXT(FIND(\"Brud på integritet\",§B§70)),\" \",\"Brud på integritet \"&Risikovurdering!L12)","v":"Brud på integritet Brud på tilgængelighed Brud på integritet Brud på fortrolighed "},{"$f":"IF(ISTEXT(FIND(\"Brud på integritet\",§B§70)),\" \",\"Brud på integritet \"&Risikovurdering!L13)","v":"Brud på integritet Brud på tilgængelighed "},{"$f":"IF(ISTEXT(FIND(\"Brud på integritet\",§B§70)),\" \",\"Brud på integritet \"&Risikovurdering!L14)","v":"Brud på integritet Brud på fortrolighed "},{"$f":"IF(ISTEXT(FIND(\"Brud på integritet\",§B§70)),\" \",\"Brud på integritet \"&Risikovurdering!L15)","v":"Brud på integritet Brud på fortrolighed Brud på integritet "},{"$f":"IF(ISTEXT(FIND(\"Brud på integritet\",§B§70)),\" \",\"Brud på integritet \"&Risikovurdering!L16)","v":"Brud på integritet Brud på tilgængelighed "},{"$f":"IF(ISTEXT(FIND(\"Brud på integritet\",§B§70)),\" \",\"Brud på integritet \"&Risikovurdering!L18)","v":"Brud på integritet Brud på tilgængelighed "},{"$f":"IF(ISTEXT(FIND(\"Brud på integritet\",§B§70)),\" \",\"Brud på integritet \"&Risikovurdering!L19)","v":"Brud på integritet Brud på fortrolighed Brud på tilgængelighed "},{"$f":"IF(ISTEXT(FIND(\"Brud på integritet\",§B§70)),\" \",\"Brud på integritet \"&Risikovurdering!L20)","v":"Brud på integritet Brud på tilgængelighed Brud på integritet Brud på fortrolighed "},{"$f":"IF(ISTEXT(FIND(\"Brud på integritet\",§B§70)),\" \",\"Brud på integritet \"&Risikovurdering!L21)","v":"Brud på integritet Brud på tilgængelighed Brud på integritet Brud på fortrolighed "}]
[null,"Brud på tilgængelighed ",{"$f":"IF(ISTEXT(FIND(\"Brud på tilgængelighed\",§B§71)),\" \",\"Brud på tilgængelighed \"&Risikovurdering!L7)","v":"Brud på tilgængelighed Brud på fortrolighed Brud på integritet "},{"$f":"IF(ISTEXT(FIND(\"Brud på tilgængelighed\",§B§71)),\" \",\"Brud på tilgængelighed \"&Risikovurdering!L8)","v":"Brud på tilgængelighed Brud på fortrolighed "},{"$f":"IF(ISTEXT(FIND(\"Brud på tilgængelighed\",§B§71)),\" \",\"Brud på tilgængelighed \"&Risikovurdering!L9)","v":"Brud på tilgængelighed Brud på tilgængelighed "},{"$f":"IF(ISTEXT(FIND(\"Brud på tilgængelighed\",§B§71)),\" \",\"Brud på tilgængelighed \"&Risikovurdering!L10)","v":"Brud på tilgængelighed Brud på integritet Brud på fortrolighed "},{"$f":"IF(ISTEXT(FIND(\"Brud på tilgængelighed\",§B§71)),\" \",\"Brud på tilgængelighed \"&Risikovurdering!L11)","v":"Brud på tilgængelighed Brud på integritet Brud på fortrolighed "},{"$f":"IF(ISTEXT(FIND(\"Brud på tilgængelighed\",§B§71)),\" \",\"Brud på tilgængelighed \"&Risikovurdering!L12)","v":"Brud på tilgængelighed Brud på tilgængelighed Brud på integritet Brud på fortrolighed "},{"$f":"IF(ISTEXT(FIND(\"Brud på tilgængelighed\",§B§71)),\" \",\"Brud på tilgængelighed \"&Risikovurdering!L13)","v":"Brud på tilgængelighed Brud på tilgængelighed "},{"$f":"IF(ISTEXT(FIND(\"Brud på tilgængelighed\",§B§71)),\" \",\"Brud på tilgængelighed \"&Risikovurdering!L14)","v":"Brud på tilgængelighed Brud på fortrolighed "},{"$f":"IF(ISTEXT(FIND(\"Brud på tilgængelighed\",§B§71)),\" \",\"Brud på tilgængelighed \"&Risikovurdering!L15)","v":"Brud på tilgængelighed Brud på fortrolighed Brud på integritet "},{"$f":"IF(ISTEXT(FIND(\"Brud på tilgængelighed\",§B§71)),\" \",\"Brud på tilgængelighed \"&Risikovurdering!L16)","v":"Brud på tilgængelighed Brud på tilgængelighed "},{"$f":"IF(ISTEXT(FIND(\"Brud på tilgængelighed\",§B§71)),\" \",\"Brud på tilgængelighed \"&Risikovurdering!L18)","v":"Brud på tilgængelighed Brud på tilgængelighed "},{"$f":"IF(ISTEXT(FIND(\"Brud på tilgængelighed\",§B§71)),\" \",\"Brud på tilgængelighed \"&Risikovurdering!L19)","v":"Brud på tilgængelighed Brud på fortrolighed Brud på tilgængelighed "},{"$f":"IF(ISTEXT(FIND(\"Brud på tilgængelighed\",§B§71)),\" \",\"Brud på tilgængelighed \"&Risikovurdering!L20)","v":"Brud på tilgængelighed Brud på tilgængelighed Brud på integritet Brud på fortrolighed "},{"$f":"IF(ISTEXT(FIND(\"Brud på tilgængelighed\",§B§71)),\" \",\"Brud på tilgængelighed \"&Risikovurdering!L21)","v":"Brud på tilgængelighed Brud på tilgængelighed Brud på integritet Brud på fortrolighed "}]
[]
[]
[null,"Kategorier af registrerede"]
[null,"Vælg registrerede"]
[null,"Borgere i almindelighed (ikke primært børn/udsatte)"]
[null,"Børn og unge under 18 år"]
[null,"Leverandører og samarbejdspartnere"]
[null,"Jobansøgere"]
[null,"Nuværende og tidligere ansatte"]
[null,"Udsatte fx handicappede, socialt udsatte eller ældre"]
[]
[]
[]
[]
[]
[]
[]
[]
[]
[]
[]
[]
[]
[null,"Fortrolighed/Integritet/Tilgængelighed"]
[null,"Vælg fortrolighed"]
[null,"Lav"]
[null,"Middel"]
[null,"Høj"]
[]
[]
[]
[]
[]
[]
[]
[]
[]
[]
[]
[]
[]
[]
[]
[null,"Fanebladet"]
[null,"Foranstaltninger"]
[null,"OK"]
[null,"Delvist "]
[null,"Mangler"]
[null,"Ikke relevant"]
[]
[]
[null,"Konsekvenstype fortrolighed","U10","U11","U12","U13","U14","U15","U16","U17","U18","U19","U20","U21","U22","U23"]
[null,"Brud på fortrolighed",{"$f":"IF(ISTEXT(FIND(\"Brud på fortrolighed\",§B§124)),\" \",\"Brud på fortrolighed \"&Risikovurdering!S7)","v":"Brud på fortrolighed Brud på fortrolighed Brud på integritet "},{"$f":"IF(ISTEXT(FIND(\"Brud på fortrolighed\",§B§124)),\" \",\"Brud på fortrolighed \"&Risikovurdering!S8)","v":"Brud på fortrolighed Brud på fortrolighed "},{"$f":"IF(ISTEXT(FIND(\"Brud på fortrolighed\",§B§124)),\" \",\"Brud på fortrolighed \"&Risikovurdering!S9)","v":"Brud på fortrolighed Brud på tilgængelighed "},{"$f":"IF(ISTEXT(FIND(\"Brud på fortrolighed\",§B§124)),\" \",\"Brud på fortrolighed \"&Risikovurdering!S10)","v":"Brud på fortrolighed Brud på integritet Brud på fortrolighed "},{"$f":"IF(ISTEXT(FIND(\"Brud på fortrolighed\",§B§124)),\" \",\"Brud på fortrolighed \"&Risikovurdering!S11)","v":"Brud på fortrolighed Brud på integritet Brud på fortrolighed "},{"$f":"IF(ISTEXT(FIND(\"Brud på fortrolighed\",§B§124)),\" \",\"Brud på fortrolighed \"&Risikovurdering!S12)","v":"Brud på fortrolighed Brud på tilgængelighed Brud på integritet Brud på fortrolighed "},{"$f":"IF(ISTEXT(FIND(\"Brud på fortrolighed\",§B§124)),\" \",\"Brud på fortrolighed \"&Risikovurdering!S13)","v":"Brud på fortrolighed Brud på tilgængelighed "},{"$f":"IF(ISTEXT(FIND(\"Brud på fortrolighed\",§B§124)),\" \",\"Brud på fortrolighed \"&Risikovurdering!S14)","v":"Brud på fortrolighed Brud på fortrolighed "},{"$f":"IF(ISTEXT(FIND(\"Brud på fortrolighed\",§B§124)),\" \",\"Brud på fortrolighed \"&Risikovurdering!S15)","v":"Brud på fortrolighed Brud på fortrolighed Brud på integritet "},{"$f":"IF(ISTEXT(FIND(\"Brud på fortrolighed\",§B§124)),\" \",\"Brud på fortrolighed \"&Risikovurdering!S16)","v":"Brud på fortrolighed Brud på tilgængelighed "},{"$f":"IF(ISTEXT(FIND(\"Brud på fortrolighed\",§B§124)),\" \",\"Brud på fortrolighed \"&Risikovurdering!S18)","v":"Brud på fortrolighed Brud på tilgængelighed "},{"$f":"IF(ISTEXT(FIND(\"Brud på fortrolighed\",§B§124)),\" \",\"Brud på fortrolighed \"&Risikovurdering!S19)","v":"Brud på fortrolighed Brud på fortrolighed Brud på tilgængelighed "},{"$f":"IF(ISTEXT(FIND(\"Brud på fortrolighed\",§B§124)),\" \",\"Brud på fortrolighed \"&Risikovurdering!S20)","v":"Brud på fortrolighed Brud på tilgængelighed Brud på integritet Brud på fortrolighed "},{"$f":"IF(ISTEXT(FIND(\"Brud på fortrolighed\",§B§124)),\" \",\"Brud på fortrolighed \"&Risikovurdering!S21)","v":"Brud på fortrolighed Brud på tilgængelighed Brud på integritet Brud på fortrolighed "}]
[null,"Brud på integritet",{"$f":"IF(ISTEXT(FIND(\"Brud på integritet\",§B§125)),\" \",\"Brud på integritet \"&Risikovurdering!S7)","v":"Brud på integritet Brud på fortrolighed Brud på integritet "},{"$f":"IF(ISTEXT(FIND(\"Brud på integritet\",§B§125)),\" \",\"Brud på integritet \"&Risikovurdering!S8)","v":"Brud på integritet Brud på fortrolighed "},{"$f":"IF(ISTEXT(FIND(\"Brud på integritet\",§B§125)),\" \",\"Brud på integritet \"&Risikovurdering!S9)","v":"Brud på integritet Brud på tilgængelighed "},{"$f":"IF(ISTEXT(FIND(\"Brud på integritet\",§B§125)),\" \",\"Brud på integritet \"&Risikovurdering!S10)","v":"Brud på integritet Brud på integritet Brud på fortrolighed "},{"$f":"IF(ISTEXT(FIND(\"Brud på integritet\",§B§125)),\" \",\"Brud på integritet \"&Risikovurdering!S11)","v":"Brud på integritet Brud på integritet Brud på fortrolighed "},{"$f":"IF(ISTEXT(FIND(\"Brud på integritet\",§B§125)),\" \",\"Brud på integritet \"&Risikovurdering!S12)","v":"Brud på integritet Brud på tilgængelighed Brud på integritet Brud på fortrolighed "},{"$f":"IF(ISTEXT(FIND(\"Brud på integritet\",§B§125)),\" \",\"Brud på integritet \"&Risikovurdering!S13)","v":"Brud på integritet Brud på tilgængelighed "},{"$f":"IF(ISTEXT(FIND(\"Brud på integritet\",§B§125)),\" \",\"Brud på integritet \"&Risikovurdering!S14)","v":"Brud på integritet Brud på fortrolighed "},{"$f":"IF(ISTEXT(FIND(\"Brud på integritet\",§B§125)),\" \",\"Brud på integritet \"&Risikovurdering!S15)","v":"Brud på integritet Brud på fortrolighed Brud på integritet "},{"$f":"IF(ISTEXT(FIND(\"Brud på integritet\",§B§125)),\" \",\"Brud på integritet \"&Risikovurdering!S16)","v":"Brud på integritet Brud på tilgængelighed "},{"$f":"IF(ISTEXT(FIND(\"Brud på integritet\",§B§125)),\" \",\"Brud på integritet \"&Risikovurdering!S18)","v":"Brud på integritet Brud på tilgængelighed "},{"$f":"IF(ISTEXT(FIND(\"Brud på integritet\",§B§125)),\" \",\"Brud på integritet \"&Risikovurdering!S19)","v":"Brud på integritet Brud på fortrolighed Brud på tilgængelighed "},{"$f":"IF(ISTEXT(FIND(\"Brud på integritet\",§B§125)),\" \",\"Brud på integritet \"&Risikovurdering!S20)","v":"Brud på integritet Brud på tilgængelighed Brud på integritet Brud på fortrolighed "},{"$f":"IF(ISTEXT(FIND(\"Brud på integritet\",§B§125)),\" \",\"Brud på integritet \"&Risikovurdering!S21)","v":"Brud på integritet Brud på tilgængelighed Brud på integritet Brud på fortrolighed "}]
[null,"Brud på tilgængelighed",{"$f":"IF(ISTEXT(FIND(\"Brud på tilgængelighed\",§B§126)),\" \",\"Brud på tilgængelighed \"&Risikovurdering!S7)","v":"Brud på tilgængelighed Brud på fortrolighed Brud på integritet "},{"$f":"IF(ISTEXT(FIND(\"Brud på tilgængelighed\",§B§126)),\" \",\"Brud på tilgængelighed \"&Risikovurdering!S8)","v":"Brud på tilgængelighed Brud på fortrolighed "},{"$f":"IF(ISTEXT(FIND(\"Brud på tilgængelighed\",§B§126)),\" \",\"Brud på tilgængelighed \"&Risikovurdering!S9)","v":"Brud på tilgængelighed Brud på tilgængelighed "},{"$f":"IF(ISTEXT(FIND(\"Brud på tilgængelighed\",§B§126)),\" \",\"Brud på tilgængelighed \"&Risikovurdering!S10)","v":"Brud på tilgængelighed Brud på integritet Brud på fortrolighed "},{"$f":"IF(ISTEXT(FIND(\"Brud på tilgængelighed\",§B§126)),\" \",\"Brud på tilgængelighed \"&Risikovurdering!S11)","v":"Brud på tilgængelighed Brud på integritet Brud på fortrolighed "},{"$f":"IF(ISTEXT(FIND(\"Brud på tilgængelighed\",§B§126)),\" \",\"Brud på tilgængelighed \"&Risikovurdering!S12)","v":"Brud på tilgængelighed Brud på tilgængelighed Brud på integritet Brud på fortrolighed "},{"$f":"IF(ISTEXT(FIND(\"Brud på tilgængelighed\",§B§126)),\" \",\"Brud på tilgængelighed \"&Risikovurdering!S13)","v":"Brud på tilgængelighed Brud på tilgængelighed "},{"$f":"IF(ISTEXT(FIND(\"Brud på tilgængelighed\",§B§126)),\" \",\"Brud på tilgængelighed \"&Risikovurdering!S14)","v":"Brud på tilgængelighed Brud på fortrolighed "},{"$f":"IF(ISTEXT(FIND(\"Brud på tilgængelighed\",§B§126)),\" \",\"Brud på tilgængelighed \"&Risikovurdering!S15)","v":"Brud på tilgængelighed Brud på fortrolighed Brud på integritet "},{"$f":"IF(ISTEXT(FIND(\"Brud på tilgængelighed\",§B§126)),\" \",\"Brud på tilgængelighed \"&Risikovurdering!S16)","v":"Brud på tilgængelighed Brud på tilgængelighed "},{"$f":"IF(ISTEXT(FIND(\"Brud på tilgængelighed\",§B§126)),\" \",\"Brud på tilgængelighed \"&Risikovurdering!S18)","v":"Brud på tilgængelighed Brud på tilgængelighed "},{"$f":"IF(ISTEXT(FIND(\"Brud på tilgængelighed\",§B§126)),\" \",\"Brud på tilgængelighed \"&Risikovurdering!S19)","v":"Brud på tilgængelighed Brud på fortrolighed Brud på tilgængelighed "},{"$f":"IF(ISTEXT(FIND(\"Brud på tilgængelighed\",§B§126)),\" \",\"Brud på tilgængelighed \"&Risikovurdering!S20)","v":"Brud på tilgængelighed Brud på tilgængelighed Brud på integritet Brud på fortrolighed "},{"$f":"IF(ISTEXT(FIND(\"Brud på tilgængelighed\",§B§126)),\" \",\"Brud på tilgængelighed \"&Risikovurdering!S21)","v":"Brud på tilgængelighed Brud på tilgængelighed Brud på integritet Brud på fortrolighed "}]
[]
[]
[null,"NSIS"]
[null,"Ja"]
[null,"Nej"]
[null,"Ikke relevant"]
[]
[]
[null,"Vælg hyppighed for tilsyn"]
[null,"Halvårligt"]
[null,"Årligt"]
[null,"Hvert 2. år "]
[]
[]
[null,"Formel til drop down ja/nej (konsekvensanalyse)"]
[null,"Vælg "]
[null,"Ja "]
[null,"Nej "]
[]
[]
[null,"Tilsynsform"]
[null,"Vælg tilsynsform"]
[null,"Ekstern part, fx DBS"]
[null,"Revisionserklæring"]
[null,"Skriftligt tilsyn"]
[null,"Fysisk tilsyn"]
[null,"Andet"]